[Event "2026 European Womens Championship"]
[Site "Batumi, GE"]
[Date "2026.06.02"]
[Round "8"]
[White "Chkhartishvili, Lika"]
[Black "Akat, Elifnaz"]
[Result "0-1"]
[Board "70"]
[TimeControl "5400+30"]
[WhiteFideId "13635166"]
[BlackFideId "34560556"]
[WhiteElo "1822"]
[BlackElo "2061"]
[BlackTitle "WFM"]
[WhiteClock "0:08:05"]
[BlackClock "0:10:42"]
[Variant "Standard"]

1. e4 {[%clk 1:30:57]}  c5 {[%clk 1:30:59]} 2. Nf3 {[%clk 1:31:20]}  d6 {[%clk 1:31:27]} 3. d4 {[%clk 1:31:45]}  cxd4 {[%clk 1:31:55]}
4. Qxd4 {[%clk 1:32:09]}  Nc6 {[%clk 1:31:36]} 5. Bb5 {[%clk 1:32:05]}  Bd7 {[%clk 1:26:55]} 6. Qd3 {[%clk 1:31:40]}  g6 {[%clk 1:19:38]}
7. c4 {[%clk 1:25:56]}  Bg7 {[%clk 1:17:58]} 8. Nc3 {[%clk 1:24:36]}  a6 {[%clk 1:16:33]} 9. Bxc6 {[%clk 1:21:10]}  bxc6 {[%clk 1:16:16]}
10. O-O {[%clk 1:21:01]}  Qc7 {[%clk 1:15:16]} 11. Bf4 {[%clk 1:15:44]}  Qb7 {[%clk 1:05:15]} 12. b3 {[%clk 1:13:09]}  Nf6 {[%clk 1:03:20]}
13. Rad1 {[%clk 1:10:13]}  O-O {[%clk 0:56:59]} 14. Na4 {[%clk 1:01:22]}  c5 {[%clk 0:46:21]} 15. Nc3 {[%clk 1:01:35]}  Bc6 {[%clk 0:45:54]}
16. Nd5 {[%clk 1:00:53]}  Nh5 {[%clk 0:41:59]} 17. Bg5 {[%clk 0:58:48]}  f6 {[%clk 0:40:52]} 18. Bd2 {[%clk 0:56:51]}  e6 {[%clk 0:37:09]}
19. Nc3 {[%clk 0:56:48]}  Rad8 {[%clk 0:36:07]} 20. Rfe1 {[%clk 0:40:43]}  Bh8 {[%clk 0:31:37]} 21. Bh6 {[%clk 0:36:05]}  Rfe8 {[%clk 0:30:43]}
22. Bc1 {[%clk 0:34:04]}  Qf7 {[%clk 0:25:45]} 23. Qe3 {[%clk 0:24:26]}  g5 {[%clk 0:24:03]} 24. h3 {[%clk 0:21:31]}  Qg6 {[%clk 0:21:08]}
25. Nd2 {[%clk 0:17:20]}  f5 {[%clk 0:20:38]} 26. Bb2 {[%clk 0:17:08]}  Bd4 {[%clk 0:17:52]} 27. Qe2 {[%clk 0:15:53]}  g4 {[%clk 0:13:40]}
28. hxg4 {[%clk 0:15:05]}  fxg4 {[%clk 0:14:08]} 29. Na4 {[%clk 0:14:24]}  Nf4 {[%clk 0:14:11]} 30. Qf1 {[%clk 0:14:02]}  e5 {[%clk 0:14:20]}
31. Bxd4 {[%clk 0:13:50]}  exd4 {[%clk 0:14:37]} 32. Nb6 {[%clk 0:12:10]}  Re5 {[%clk 0:12:25]} 33. Nd5 {[%clk 0:11:24]}  Rf8 {[%clk 0:12:53]}
34. Nxf4 {[%clk 0:11:26]}  Rxf4 {[%clk 0:13:21]} 35. g3 {[%clk 0:11:27]}  Rf6 {[%clk 0:10:57]} 36. Qg2 {[%clk 0:11:02]}  Rh5 {[%clk 0:10:44]}
37. Re2 {[%clk 0:09:04]}  Qf7 {[%clk 0:10:05]} 38. Rf1 {[%clk 0:08:24]}  Rf3 {[%clk 0:09:49]} 39. Rfe1 {[%clk 0:07:10]}  d3 {[%clk 0:08:26]}
40. Re3 {[%clk 0:06:40]}  Rxf2 {[%clk 0:08:49]} 41. Qxf2 {[%clk 0:06:49]}  Rh1+ {[%clk 0:09:12]} 42. Kxh1 {[%clk 0:07:04]}  Qxf2 {[%clk 0:09:39]}
43. Nf1 {[%clk 0:07:11]}  d2 {[%clk 0:09:29]} 44. Rd1 {[%clk 0:07:35]}  Bxe4+ {[%clk 0:09:37]} 45. Rxe4 {[%clk 0:07:55]}  Qf3+ {[%clk 0:10:02]}
46. Kg1 {[%clk 0:08:21]}  Qxd1 {[%clk 0:10:14]} 47. Kf2 {[%clk 0:08:05]}  Qf3+ {[%clk 0:10:42]} 0-1

[Event "2026 European Womens Championship"]
[Site "Batumi, GE"]
[Date "2026.06.02"]
[Round "8"]
[White "Asatiani, Natali"]
[Black "Hayrapetyan, Nvard"]
[Result "0-1"]
[Board "71"]
[TimeControl "5400+30"]
[WhiteFideId "13636715"]
[BlackFideId "13316460"]
[WhiteElo "1603"]
[BlackElo "2057"]
[BlackTitle "WFM"]
[WhiteClock "0:02:08"]
[BlackClock "0:32:33"]
[Variant "Standard"]

1. e4 {[%clk 1:30:32]}  c5 {[%clk 1:30:44]} 2. c3 {[%clk 1:30:55]}  d5 {[%clk 1:31:02]} 3. exd5 {[%clk 1:31:19]}  Qxd5 {[%clk 1:31:26]}
4. d4 {[%clk 1:31:13]}  g6 {[%clk 1:31:19]} 5. Nf3 {[%clk 1:30:39]}  Bg7 {[%clk 1:31:11]} 6. Be2 {[%clk 1:30:04]}  cxd4 {[%clk 1:28:49]}
7. cxd4 {[%clk 1:29:16]}  Nf6 {[%clk 1:26:55]} 8. Nc3 {[%clk 1:28:43]}  Qa5 {[%clk 1:26:10]} 9. O-O {[%clk 1:28:01]}  O-O {[%clk 1:26:05]}
10. Bf4 {[%clk 1:20:41]}  Rd8 {[%clk 1:22:47]} 11. Rc1 {[%clk 1:13:19]}  Nc6 {[%clk 1:20:42]} 12. Bc4 {[%clk 1:00:40]}  Bg4 {[%clk 1:06:39]}
13. d5 {[%clk 0:48:53]}  e6 {[%clk 1:02:23]} 14. Bd2 {[%clk 0:34:48]}  Bxf3 {[%clk 0:54:18]} 15. gxf3 {[%clk 0:29:37]}  exd5 {[%clk 0:49:14]}
16. Nxd5 {[%clk 0:26:56]}  Rxd5 {[%clk 0:49:28]} 17. Bxa5 {[%clk 0:21:58]}  Rxd1 {[%clk 0:49:40]} 18. Rfxd1 {[%clk 0:21:55]}  Nxa5 {[%clk 0:50:01]}
19. Bb5 {[%clk 0:21:28]}  a6 {[%clk 0:48:50]} 20. Bf1 {[%clk 0:15:30]}  Nc6 {[%clk 0:45:35]} 21. b3 {[%clk 0:13:49]}  Bh6 {[%clk 0:44:50]}
22. Rc2 {[%clk 0:11:37]}  Bf4 {[%clk 0:41:15]} 23. a3 {[%clk 0:09:00]}  g5 {[%clk 0:39:12]} 24. Kg2 {[%clk 0:07:14]}  Kg7 {[%clk 0:37:27]}
25. b4 {[%clk 0:05:44]}  Ne5 {[%clk 0:35:44]} 26. Rd4 {[%clk 0:03:59]}  Ng6 {[%clk 0:35:33]} 27. Be2 {[%clk 0:03:38]}  Re8 {[%clk 0:35:02]}
28. Rd3 {[%clk 0:01:35]}  Re7 {[%clk 0:33:24]} 29. a4 {[%clk 0:01:50]}  Nd7 {[%clk 0:33:05]} 30. a5 {[%clk 0:01:05]}  Nde5 {[%clk 0:33:07]}
31. Rdc3 {[%clk 0:01:28]}  Nh4+ {[%clk 0:32:48]} 32. Kg1 {[%clk 0:01:36]}  Nc6 {[%clk 0:32:03]} 33. Rb3 {[%clk 0:01:02]}  Nd4 {[%clk 0:32:24]}
34. Rbb2 {[%clk 0:00:37]}  Nxc2 {[%clk 0:32:20]} 35. Rxc2 {[%clk 0:01:07]}  Bd6 {[%clk 0:32:35]} 36. b5 {[%clk 0:01:09]}  axb5 {[%clk 0:32:53]}
37. Kf1 {[%clk 0:01:33]}  b4 {[%clk 0:33:10]} 38. Rd2 {[%clk 0:01:43]}  Bxh2 {[%clk 0:33:06]} 39. Rd4 {[%clk 0:01:44]}  b3 {[%clk 0:33:22]}
40. Rb4 {[%clk 0:02:08]}  Rc7 {[%clk 0:32:33]} 0-1

[Event "2026 European Womens Championship"]
[Site "Batumi, GE"]
[Date "2026.06.02"]
[Round "8"]
[White "Kochavi, Dana"]
[Black "Saltkhutsishvili, Sara"]
[Result "0-1"]
[Board "72"]
[TimeControl "5400+30"]
[WhiteFideId "2837137"]
[BlackFideId "13636995"]
[WhiteElo "2209"]
[BlackElo "1763"]
[WhiteTitle "FM"]
[WhiteClock "1:03:15"]
[BlackClock "0:07:34"]
[Variant "Standard"]

1. e4 {[%clk 1:30:58]}  c6 {[%clk 1:30:57]} 2. Nc3 {[%clk 1:31:10]}  d5 {[%clk 1:31:23]} 3. Nf3 {[%clk 1:31:32]}  Bg4 {[%clk 1:31:47]}
4. d4 {[%clk 1:31:56]}  e6 {[%clk 1:32:03]} 5. Be2 {[%clk 1:32:18]}  Be7 {[%clk 1:31:44]} 6. h3 {[%clk 1:32:37]}  Bh5 {[%clk 1:32:12]}
7. a3 {[%clk 1:32:34]}  Nf6 {[%clk 1:31:38]} 8. e5 {[%clk 1:32:57]}  Nfd7 {[%clk 1:31:49]} 9. Na2 {[%clk 1:31:27]}  c5 {[%clk 1:28:56]}
10. c3 {[%clk 1:31:48]}  Nc6 {[%clk 1:29:07]} 11. b4 {[%clk 1:29:25]}  cxd4 {[%clk 1:19:42]} 12. cxd4 {[%clk 1:29:07]}  a6 {[%clk 1:18:11]}
13. g4 {[%clk 1:28:07]}  Bg6 {[%clk 1:17:17]} 14. Be3 {[%clk 1:27:23]}  b5 {[%clk 1:15:02]} 15. h4 {[%clk 1:20:17]}  h5 {[%clk 1:02:18]}
16. gxh5 {[%clk 1:19:27]}  Bxh5 {[%clk 1:02:45]} 17. Rg1 {[%clk 1:19:48]}  Bf8 {[%clk 0:58:06]} 18. Ng5 {[%clk 1:11:40]}  Bxe2 {[%clk 0:50:02]}
19. Qxe2 {[%clk 1:12:04]}  Rxh4 {[%clk 0:44:19]} 20. Qd3 {[%clk 1:12:28]}  Rc8 {[%clk 0:28:04]} 21. Nxe6 {[%clk 1:12:15]}  Ndxe5 {[%clk 0:25:32]}
22. dxe5 {[%clk 1:12:25]}  fxe6 {[%clk 0:25:42]} 23. Qg6+ {[%clk 1:09:54]}  Kd7 {[%clk 0:26:00]} 24. Bg5 {[%clk 1:10:20]}  Nxe5 {[%clk 0:24:00]}
25. Bxd8 {[%clk 1:09:51]}  Nxg6 {[%clk 0:24:27]} 26. Bxh4 {[%clk 1:10:13]}  Nxh4 {[%clk 0:24:56]} 27. Rg4 {[%clk 1:10:09]}  Nf3+ {[%clk 0:21:50]}
28. Ke2 {[%clk 1:10:34]}  Ne5 {[%clk 0:21:42]} 29. Rg5 {[%clk 1:10:43]}  Be7 {[%clk 0:20:41]} 30. Rxg7 {[%clk 1:10:23]}  Rc2+ {[%clk 0:20:50]}
31. Ke3 {[%clk 1:08:36]}  Nc4+ {[%clk 0:20:03]} 32. Kf3 {[%clk 1:09:00]}  Kd6 {[%clk 0:19:18]} 33. Rgg1 {[%clk 1:03:12]}  Bf6 {[%clk 0:14:22]}
34. Rgc1 {[%clk 1:03:37]}  Rd2 {[%clk 0:14:31]} 35. a4 {[%clk 1:03:18]}  Bxa1 {[%clk 0:13:31]} 36. Rxa1 {[%clk 1:03:29]}  bxa4 {[%clk 0:13:29]}
37. Kg2 {[%clk 1:03:53]}  Rd3 {[%clk 0:11:09]} 38. Rc1 {[%clk 1:03:43]}  Rb3 {[%clk 0:10:12]} 39. Rc2 {[%clk 1:04:08]}  a3 {[%clk 0:10:16]}
40. Nc3 {[%clk 1:03:15]}  Rxb4 {[%clk 0:07:34]} 0-1

[Event "2026 European Womens Championship"]
[Site "Batumi, GE"]
[Date "2026.06.02"]
[Round "8"]
[White "Donghvani, Nia"]
[Black "Kalayci, Nino"]
[Result "1-0"]
[Board "73"]
[TimeControl "5400+30"]
[WhiteFideId "13614649"]
[BlackFideId "13603221"]
[WhiteElo "2117"]
[BlackElo "1755"]
[WhiteTitle "WFM"]
[BlackTitle "WCM"]
[WhiteClock "0:01:34"]
[BlackClock "0:00:41"]
[Variant "Standard"]

1. e4 {[%clk 1:30:58]}  e6 {[%clk 1:29:14]} 2. d4 {[%clk 1:31:21]}  d5 {[%clk 1:29:34]} 3. Nc3 {[%clk 1:31:45]}  Nf6 {[%clk 1:29:43]}
4. Bg5 {[%clk 1:31:03]}  Be7 {[%clk 1:29:59]} 5. e5 {[%clk 1:15:06]}  Nfd7 {[%clk 1:25:06]} 6. Bxe7 {[%clk 1:15:26]}  Qxe7 {[%clk 1:25:31]}
7. Qd2 {[%clk 1:11:30]}  a6 {[%clk 1:25:04]} 8. f4 {[%clk 1:09:09]}  c5 {[%clk 1:24:06]} 9. dxc5 {[%clk 1:04:35]}  Nxc5 {[%clk 1:23:14]}
10. Nf3 {[%clk 0:56:27]}  Nc6 {[%clk 1:22:14]} 11. Bd3 {[%clk 0:55:20]}  b5 {[%clk 1:14:10]} 12. O-O {[%clk 0:53:20]}  b4 {[%clk 1:00:33]}
13. Ne2 {[%clk 0:53:29]}  Nxd3 {[%clk 0:54:27]} 14. cxd3 {[%clk 0:53:28]}  O-O {[%clk 0:50:03]} 15. Rac1 {[%clk 0:53:31]}  Bd7 {[%clk 0:39:28]}
16. Kh1 {[%clk 0:48:40]}  a5 {[%clk 0:32:24]} 17. g4 {[%clk 0:38:02]}  Rac8 {[%clk 0:28:50]} 18. Ng3 {[%clk 0:36:47]}  f6 {[%clk 0:09:41]}
19. d4 {[%clk 0:29:08]}  fxe5 {[%clk 0:05:28]} 20. dxe5 {[%clk 0:29:34]}  b3 {[%clk 0:02:58]} 21. a3 {[%clk 0:24:28]}  Nb8 {[%clk 0:02:13]}
22. Rxc8 {[%clk 0:15:56]}  Bxc8 {[%clk 0:02:26]} 23. Ng5 {[%clk 0:11:40]}  h6 {[%clk 0:01:38]} 24. Nf3 {[%clk 0:12:09]}  d4 {[%clk 0:00:39]}
25. Qxd4 {[%clk 0:09:51]}  Bb7 {[%clk 0:00:51]} 26. Kg1 {[%clk 0:06:46]}  Rd8 {[%clk 0:00:42]} 27. Qe3 {[%clk 0:07:03]}  a4 {[%clk 0:00:35]}
28. f5 {[%clk 0:04:48]}  Ba6 {[%clk 0:00:47]} 29. Rf2 {[%clk 0:03:46]}  Rd3 {[%clk 0:00:38]} 30. Qb6 {[%clk 0:03:11]}  Bb7 {[%clk 0:00:36]}
31. f6 {[%clk 0:02:23]}  gxf6 {[%clk 0:00:37]} 32. exf6 {[%clk 0:02:45]}  Rd1+ {[%clk 0:00:34]} 33. Nf1 {[%clk 0:01:46]}  Qd7 {[%clk 0:00:33]}
34. Ne5 {[%clk 0:01:11]}  Qd5 {[%clk 0:00:36]} 35. f7+ {[%clk 0:01:35]}  Kh7 {[%clk 0:00:45]} 36. Qxb7 {[%clk 0:01:07]}  Qxb7 {[%clk 0:00:41]}
37. f8=Q {[%clk 0:01:34]} 1-0

[Event "2026 European Womens Championship"]
[Site "Batumi, GE"]
[Date "2026.06.02"]
[Round "8"]
[White "Kedelidze, Aneta"]
[Black "Avelino, Camila Biscaya"]
[Result "0-1"]
[Board "74"]
[TimeControl "5400+30"]
[WhiteFideId "13626191"]
[BlackFideId "1938975"]
[WhiteElo "1676"]
[BlackElo "1937"]
[BlackTitle "WFM"]
[WhiteClock "0:29:02"]
[BlackClock "0:23:11"]
[Variant "Standard"]

1. d4 {[%clk 1:28:49]}  Nf6 {[%clk 1:30:51]} 2. c4 {[%clk 1:29:11]}  g6 {[%clk 1:31:12]} 3. Nc3 {[%clk 1:29:33]}  Bg7 {[%clk 1:31:37]}
4. e4 {[%clk 1:29:57]}  d6 {[%clk 1:32:02]} 5. Be2 {[%clk 1:30:24]}  O-O {[%clk 1:32:20]} 6. h4 {[%clk 1:30:44]}  e5 {[%clk 1:32:13]}
7. d5 {[%clk 1:31:02]}  Na6 {[%clk 1:32:27]} 8. h5 {[%clk 1:22:33]}  c6 {[%clk 1:16:19]} 9. hxg6 {[%clk 1:22:03]}  fxg6 {[%clk 1:16:14]}
10. Be3 {[%clk 1:20:45]}  cxd5 {[%clk 1:13:31]} 11. cxd5 {[%clk 1:20:04]}  Nc5 {[%clk 1:12:24]} 12. Bf3 {[%clk 1:11:50]}  Qa5 {[%clk 1:08:39]}
13. Kf1 {[%clk 1:08:16]}  b5 {[%clk 0:56:09]} 14. Bxc5 {[%clk 1:01:09]}  dxc5 {[%clk 0:56:28]} 15. g3 {[%clk 1:01:08]}  b4 {[%clk 0:42:47]}
16. Nb1 {[%clk 0:58:43]}  c4 {[%clk 0:33:52]} 17. Kg2 {[%clk 0:57:48]}  g5 {[%clk 0:27:49]} 18. Qc2 {[%clk 0:41:00]}  Qc5 {[%clk 0:25:42]}
19. Nd2 {[%clk 0:33:53]}  g4 {[%clk 0:22:49]} 20. Bd1 {[%clk 0:31:48]}  b3 {[%clk 0:12:29]} 21. axb3 {[%clk 0:24:36]}  Nxd5 {[%clk 0:12:33]}
22. Nf1 {[%clk 0:18:59]}  Nb4 {[%clk 0:12:13]} 23. Qxc4+ {[%clk 0:18:01]}  Qxc4 {[%clk 0:12:37]} 24. bxc4 {[%clk 0:18:27]}  Nd3 {[%clk 0:11:37]}
25. f3 {[%clk 0:17:38]}  Nxb2 {[%clk 0:08:17]} 26. Be2 {[%clk 0:13:09]}  Be6 {[%clk 0:07:09]} 27. Ne3 {[%clk 0:12:19]}  Rfc8 {[%clk 0:05:08]}
28. Nd5 {[%clk 0:08:31]}  Bf8 {[%clk 0:01:37]} 29. Ra6 {[%clk 0:07:05]}  Bxd5 {[%clk 0:00:43]} 30. cxd5 {[%clk 0:07:11]}  Rc2 {[%clk 0:01:01]}
31. Kf1 {[%clk 0:02:35]}  Bc5 {[%clk 0:00:58]} 32. Rah6 {[%clk 0:01:05]}  Rf8 {[%clk 0:01:01]} 33. Rxh7 {[%clk 0:00:36]}  Rc1+ {[%clk 0:01:25]}
34. Kg2 {[%clk 0:00:46]}  Rxg1+ {[%clk 0:01:49]} 35. Rxg1 {[%clk 0:01:03]}  Kxh7 {[%clk 0:02:15]} 36. Rh1+ {[%clk 0:01:05]}  Kg6 {[%clk 0:01:59]}
37. Rc1 {[%clk 0:01:17]}  gxf3+ {[%clk 0:01:04]} 38. Bxf3 {[%clk 0:01:42]}  Nd3 {[%clk 0:00:56]} 39. Rd1 {[%clk 0:01:43]}  Nb4 {[%clk 0:00:57]}
40. Rc1 {[%clk 0:01:15]}  Bd4 {[%clk 0:00:45]} 41. d6 {[%clk 0:27:32]}  Rd8 {[%clk 0:28:20]} 42. Bg4 {[%clk 0:27:06]}  Rxd6 {[%clk 0:28:10]}
43. Rc7 {[%clk 0:27:07]}  a5 {[%clk 0:26:50]} 44. Bf5+ {[%clk 0:27:30]}  Kf6 {[%clk 0:27:10]} 45. g4 {[%clk 0:27:52]}  Rc6 {[%clk 0:24:03]}
46. Rh7 {[%clk 0:28:04]}  Rc3 {[%clk 0:23:01]} 47. Rh6+ {[%clk 0:28:17]}  Kg5 {[%clk 0:23:22]} 48. Rg6+ {[%clk 0:27:45]}  Kf4 {[%clk 0:23:45]}
49. Rg8 {[%clk 0:28:02]}  Rc2+ {[%clk 0:23:01]} 50. Kf1 {[%clk 0:28:19]}  Rf2+ {[%clk 0:22:30]} 51. Ke1 {[%clk 0:28:38]}  Nd3+ {[%clk 0:22:51]}
52. Kd1 {[%clk 0:29:02]}  Bc3 {[%clk 0:23:11]} 0-1

[Event "2026 European Womens Championship"]
[Site "Batumi, GE"]
[Date "2026.06.02"]
[Round "8"]
[White "Rusitashvili, Tea"]
[Black "Xing, Lida"]
[Result "1/2-1/2"]
[Board "75"]
[TimeControl "5400+30"]
[WhiteFideId "13640771"]
[BlackFideId "13326171"]
[WhiteElo "1929"]
[BlackElo "1598"]
[WhiteTitle "WCM"]
[WhiteClock "0:14:14"]
[BlackClock "0:52:25"]
[Variant "Standard"]

1. e4 {[%clk 1:30:55]}  e5 {[%clk 1:30:56]} 2. Nf3 {[%clk 1:31:15]}  Nc6 {[%clk 1:31:17]} 3. Bc4 {[%clk 1:31:39]}  Bc5 {[%clk 1:31:12]}
4. c3 {[%clk 1:31:51]}  Nf6 {[%clk 1:31:35]} 5. d4 {[%clk 1:32:15]}  exd4 {[%clk 1:32:01]} 6. cxd4 {[%clk 1:32:35]}  Bb4+ {[%clk 1:32:28]}
7. Nbd2 {[%clk 1:32:57]}  d5 {[%clk 1:31:36]} 8. exd5 {[%clk 1:33:20]}  Nxd5 {[%clk 1:32:01]} 9. O-O {[%clk 1:33:44]}  O-O {[%clk 1:32:04]}
10. a3 {[%clk 1:34:08]}  Bxd2 {[%clk 1:31:36]} 11. Bxd2 {[%clk 1:33:42]}  Nb6 {[%clk 1:30:37]} 12. Ba2 {[%clk 1:31:05]}  Bg4 {[%clk 1:27:45]}
13. h3 {[%clk 1:29:22]}  Bh5 {[%clk 1:19:00]} 14. g4 {[%clk 1:11:36]}  Bg6 {[%clk 1:19:19]} 15. Bg5 {[%clk 1:11:22]}  Qd6 {[%clk 1:18:35]}
16. d5 {[%clk 1:10:38]}  Be4 {[%clk 1:14:27]} 17. dxc6 {[%clk 1:07:45]}  Qxd1 {[%clk 1:14:51]} 18. Rfxd1 {[%clk 1:07:39]}  Bxf3 {[%clk 1:15:08]}
19. cxb7 {[%clk 1:07:46]}  Bxb7 {[%clk 1:15:04]} 20. Rac1 {[%clk 1:07:38]}  Rac8 {[%clk 1:14:52]} 21. Rc5 {[%clk 1:05:52]}  h6 {[%clk 1:12:10]}
22. Bh4 {[%clk 1:03:16]}  g5 {[%clk 1:11:53]} 23. Bg3 {[%clk 1:02:42]}  Rfd8 {[%clk 1:11:41]} 24. Rdc1 {[%clk 1:01:17]}  Rd2 {[%clk 1:08:45]}
25. Rf5 {[%clk 0:51:48]}  Nd5 {[%clk 0:57:09]} 26. h4 {[%clk 0:49:47]}  Rd8 {[%clk 0:54:43]} 27. Bxd5 {[%clk 0:39:05]}  R8xd5 {[%clk 0:54:18]}
28. Rxd5 {[%clk 0:38:57]}  Rxd5 {[%clk 0:54:24]} 29. hxg5 {[%clk 0:34:51]}  hxg5 {[%clk 0:54:48]} 30. Bxc7 {[%clk 0:34:26]}  Rd4 {[%clk 0:54:12]}
31. Bg3 {[%clk 0:33:12]}  Bf3 {[%clk 0:54:18]} 32. Kf1 {[%clk 0:25:45]}  Rxg4 {[%clk 0:53:00]} 33. Rc3 {[%clk 0:24:54]}  Bd5 {[%clk 0:52:27]}
34. Rc5 {[%clk 0:23:10]}  Bf3 {[%clk 0:52:21]} 35. Rf5 {[%clk 0:21:20]}  Be4 {[%clk 0:52:15]} 36. Ra5 {[%clk 0:18:43]}  a6 {[%clk 0:51:38]}
37. Re5 {[%clk 0:16:51]}  f6 {[%clk 0:51:06]} 38. Re7 {[%clk 0:16:49]}  Bd3+ {[%clk 0:50:42]} 39. Ke1 {[%clk 0:16:22]}  Re4+ {[%clk 0:51:04]}
40. Rxe4 {[%clk 0:16:41]}  Bxe4 {[%clk 0:51:30]} 41. Kd2 {[%clk 0:17:01]}  f5 {[%clk 0:51:45]} 42. Bc7 {[%clk 0:17:16]}  Kf7 {[%clk 0:51:59]}
43. Kc3 {[%clk 0:17:15]}  f4 {[%clk 0:51:14]} 44. Kd4 {[%clk 0:17:24]}  Bb7 {[%clk 0:51:02]} 45. Kc5 {[%clk 0:16:14]}  Kg6 {[%clk 0:50:52]}
46. Kb6 {[%clk 0:15:13]}  Bc8 {[%clk 0:51:15]} 47. b4 {[%clk 0:15:11]}  Kf5 {[%clk 0:51:39]} 48. Bd8 {[%clk 0:15:27]}  g4 {[%clk 0:51:59]}
49. Kc6 {[%clk 0:14:54]}  Ke4 {[%clk 0:51:06]} 50. a4 {[%clk 0:14:30]}  Be6 {[%clk 0:50:50]} 51. b5 {[%clk 0:13:52]}  Bd5+ {[%clk 0:51:05]}
52. Kd6 {[%clk 0:13:58]}  axb5 {[%clk 0:51:23]} 53. axb5 {[%clk 0:14:17]}  Bb7 {[%clk 0:51:43]} 54. Bb6 {[%clk 0:14:11]}  Bd5 {[%clk 0:51:44]}
55. Bc5 {[%clk 0:14:18]}  Bb7 {[%clk 0:51:47]} 56. Kc7 {[%clk 0:13:39]}  Bd5 {[%clk 0:51:53]} 57. b6 {[%clk 0:13:26]}  Kf3 {[%clk 0:51:41]}
58. b7 {[%clk 0:13:23]}  Bxb7 {[%clk 0:52:05]} 59. Kxb7 {[%clk 0:13:50]}  g3 {[%clk 0:52:25]} 60. fxg3 {[%clk 0:14:14]}  Ke4 {[%clk 0:52:12]} 1/2-1/2

[Event "2026 European Womens Championship"]
[Site "Batumi, GE"]
[Date "2026.06.02"]
[Round "8"]
[White "Danielyan, Lilia"]
[Black "Diasamidze, Lulu"]
[Result "1-0"]
[Board "76"]
[TimeControl "5400+30"]
[WhiteFideId "13319841"]
[BlackFideId "13623818"]
[WhiteElo "1728"]
[BlackElo "1924"]
[WhiteClock "0:18:00"]
[BlackClock "0:29:56"]
[Variant "Standard"]

1. c4 {[%clk 1:30:55]}  e5 {[%clk 1:30:56]} 2. Nc3 {[%clk 1:31:11]}  Nf6 {[%clk 1:31:06]} 3. Nf3 {[%clk 1:31:15]}  Nc6 {[%clk 1:31:29]}
4. d3 {[%clk 1:28:24]}  d5 {[%clk 1:31:35]} 5. cxd5 {[%clk 1:28:37]}  Nxd5 {[%clk 1:31:58]} 6. e4 {[%clk 1:28:11]}  Nf6 {[%clk 1:30:59]}
7. h3 {[%clk 1:26:03]}  h6 {[%clk 1:27:50]} 8. Be3 {[%clk 1:24:15]}  Bd6 {[%clk 1:16:02]} 9. Be2 {[%clk 1:20:59]}  O-O {[%clk 1:16:00]}
10. g4 {[%clk 1:14:43]}  Nh7 {[%clk 1:10:30]} 11. Rg1 {[%clk 1:06:26]}  Be6 {[%clk 1:00:48]} 12. g5 {[%clk 0:58:00]}  h5 {[%clk 0:54:20]}
13. Nh4 {[%clk 0:43:55]}  Be7 {[%clk 0:46:13]} 14. Nf5 {[%clk 0:37:46]}  Bxf5 {[%clk 0:37:02]} 15. exf5 {[%clk 0:38:02]}  Bxg5 {[%clk 0:32:13]}
16. Bxh5 {[%clk 0:25:03]}  Bxe3 {[%clk 0:30:50]} 17. fxe3 {[%clk 0:25:08]}  Qh4+ {[%clk 0:31:14]} 18. Kd2 {[%clk 0:23:55]}  Rad8 {[%clk 0:30:48]}
19. Qg4 {[%clk 0:21:58]}  Qxg4 {[%clk 0:29:04]} 20. Bxg4 {[%clk 0:22:11]}  Nf6 {[%clk 0:28:32]} 21. Be2 {[%clk 0:22:04]}  Nb4 {[%clk 0:27:29]}
22. Rg2 {[%clk 0:19:34]}  Kh7 {[%clk 0:26:34]} 23. Rag1 {[%clk 0:19:28]}  Rg8 {[%clk 0:26:48]} 24. Rg4 {[%clk 0:16:53]}  Nxg4 {[%clk 0:26:22]}
25. Rxg4 {[%clk 0:17:17]}  Rge8 {[%clk 0:18:02]} 26. Rxb4 {[%clk 0:17:28]}  b6 {[%clk 0:18:30]} 27. Rh4+ {[%clk 0:17:11]}  Kg8 {[%clk 0:18:59]}
28. Ne4 {[%clk 0:14:28]}  Kf8 {[%clk 0:07:18]} 29. Rh8+ {[%clk 0:08:14]}  Ke7 {[%clk 0:07:41]} 30. Rh7 {[%clk 0:08:34]}  Rg8 {[%clk 0:03:02]}
31. Bh5 {[%clk 0:06:59]}  Rh8 {[%clk 0:03:01]} 32. f6+ {[%clk 0:06:52]}  gxf6 {[%clk 0:02:32]} 33. Rxf7+ {[%clk 0:07:09]}  Ke6 {[%clk 0:03:02]}
34. Rxf6+ {[%clk 0:07:21]}  Ke7 {[%clk 0:03:17]} 35. Rf7+ {[%clk 0:03:15]}  Ke6 {[%clk 0:03:46]} 36. Ng5+ {[%clk 0:03:24]}  Kd6 {[%clk 0:03:50]}
37. Rf6+ {[%clk 0:03:35]}  Ke7 {[%clk 0:02:27]} 38. Re6+ {[%clk 0:03:33]}  Kd7 {[%clk 0:02:32]} 39. Bg4 {[%clk 0:03:24]}  Rdf8 {[%clk 0:02:16]}
40. Nf7 {[%clk 0:00:38]}  Rhg8 {[%clk 0:01:54]} 41. Nxe5+ {[%clk 0:29:28]}  Kd8 {[%clk 0:32:19]} 42. d4 {[%clk 0:23:42]}  a5 {[%clk 0:32:02]}
43. Nc6+ {[%clk 0:17:37]}  Kc8 {[%clk 0:31:38]} 44. Ne7+ {[%clk 0:17:40]}  Kb7 {[%clk 0:29:56]} 45. Nxg8 {[%clk 0:18:00]} 1-0